bitfinex/quotes_BTCUSD_20250303
["timestamp","ask_amount","ask_price","bid_price","bid_amount"]
[1740991049641,0.0003402,92324.0,92310.0,1.44625087]
[1740991049848,0.0003402,92324.0,92310.0,1.45325087]
[1740991050514,0.0003402,92324.0,92310.0,1.44625087]
[1740991050714,0.0003402,92324.0,92310.0,1.28375587]
[1740991050920,0.216645,92317.0,92310.0,1.29075587]
[1740991051123,0.2169702,92324.0,92310.0,0.94380085]
[1740991051334,0.216649,92315.0,92310.0,0.40000085]
[1740991051530,0.00189575,92318.0,92310.0,0.40000085]
[1740991051745,0.162492,92312.0,92310.0,0.4145417]
[1740991051951,0.216654,92314.0,92310.0,0.4145417]
[1740991052154,0.01101003,92315.0,92310.0,0.4145417]
[1740991052155,0.1628344,92311.0,92310.0,0.4145417]
[1740991052614,0.1628344,92311.0,92310.0,0.4986767]
[1740991052615,0.0003404,92311.0,92310.0,0.4986767]
[1740991052810,0.0003404,92311.0,92310.0,0.57804277]
[1740991053269,0.1628344,92311.0,92310.0,0.41554777]
[1740991054117,0.1628344,92311.0,92310.0,0.3361817]
[1740991054323,0.1628344,92311.0,92310.0,0.32164085]
[1740991054526,0.0003404,92311.0,92310.0,0.48413585]
[1740991054739,0.0003404,92311.0,92310.0,0.4986767]
[1740991055122,0.0003404,92311.0,92310.0,0.3361817]
[1740991055333,0.0003404,92311.0,92310.0,0.36979987]
[1740991055865,0.0003404,92311.0,92310.0,0.53229487]
[1740991056279,0.0003404,92311.0,92310.0,0.36979987]
[1740991056485,0.0003404,92311.0,92310.0,0.53229487]
[1740991057532,0.0003404,92311.0,92310.0,0.5325183]
[1740991057972,0.0003404,92311.0,92310.0,0.49890013]
[1740991059477,0.1628344,92311.0,92310.0,0.32186428]
[1740991060227,0.1628344,92311.0,92310.0,0.33640513]
[1740991060471,0.1628344,92311.0,92310.0,0.32186428]
[1740991061075,0.1628344,92311.0,92310.0,0.33640513]
[1740991061210,0.1628344,92311.0,92310.0,0.37007968]
[1740991061590,0.0003404,92311.0,92310.0,0.37007968]
[1740991061808,0.1628344,92311.0,92310.0,0.36307968]
[1740991061979,0.1628344,92311.0,92310.0,0.37007968]
[1740991062631,0.1628344,92311.0,92310.0,0.00722343]
[1740991064851,0.1628344,92311.0,92310.0,0.0039182]
[1740991066670,0.2720622,92311.0,92310.0,0.0039182]
[1740991066862,0.2720622,92311.0,92310.0,2e-07]
[1740991066863,0.6220622,92311.0,92310.0,2e-07]
[1740991067033,0.162561,92273.0,92272.0,0.31464085]
[1740991067234,0.162562,92272.0,92263.0,0.39296085]
[1740991067602,0.162562,92272.0,92271.0,0.00046096]
[1740991067738,0.16445873,92272.0,92271.0,0.00046096]
[1740991067940,0.17534304,92272.0,92271.0,0.00046096]
[1740991069152,0.25104304,92272.0,92271.0,0.00746096]
[1740991069326,0.25204304,92272.0,92271.0,0.00746096]
[1740991069549,0.25204304,92272.0,92271.0,0.00046096]
[1740991069756,0.25204304,92272.0,92271.0,0.00446096]
[1740991070188,0.25104304,92272.0,92271.0,0.00046096]
[1740991071064,0.55104304,92272.0,92271.0,0.00046096]
[1740991071297,0.54914631,92272.0,92271.0,0.00046096]
[1740991071517,0.54914631,92272.0,92271.0,0.00446096]
[1740991072019,0.64894631,92272.0,92271.0,0.00446096]
[1740991072224,0.67971961,92272.0,92271.0,0.00446096]
[1740991072704,0.64894631,92272.0,92271.0,0.00446096]
[1740991074096,0.59894631,92272.0,92271.0,0.00446096]
[1740991074568,0.54914631,92272.0,92271.0,0.00046096]
[1740991074773,0.17344631,92272.0,92271.0,0.00146096]
[1740991074954,0.17534322,92272.0,92271.0,0.00146096]
[1740991075162,0.17534322,92272.0,92271.0,0.01600181]
[1740991075335,0.1753431,92272.0,92271.0,0.01600181]
[1740991075749,0.16445879,92272.0,92271.0,0.01600181]
[1740991077158,0.16445879,92272.0,92271.0,0.00146096]
[1740991077366,0.18046079,92272.0,92271.0,0.00146096]
[1740991079086,0.60836079,92272.0,92271.0,9.6e-07]
[1740991079300,0.656264,92272.0,92271.0,9.6e-07]
[1740991079486,0.656264,92272.0,92232.0,0.31464085]
[1740991079487,0.162603,92249.0,92232.0,0.31464085]
[1740991079695,0.162635,92231.0,92230.0,0.05387059]
[1740991079833,0.162635,92231.0,92230.0,0.0542721]
[1740991080035,0.16453252,92231.0,92230.0,0.00582872]
[1740991080243,0.16453252,92231.0,92230.0,0.00040151]
[1740991080687,0.17535085,92231.0,92230.0,0.00040151]
[1740991082102,0.00189752,92231.0,92230.0,0.00040151]
[1740991082305,0.0765,92257.0,92230.0,0.00040151]
[1740991082513,0.00189717,92256.0,92231.0,0.01454085]
[1740991082721,0.162596,92253.0,92244.0,0.162611]
[1740991082923,0.00189715,92252.0,92243.0,0.162612]
[1740991083127,0.00189715,92252.0,92241.0,0.01454085]
[1740991083345,0.00189715,92252.0,92234.0,0.31464085]
[1740991083346,0.162616,92242.0,92234.0,0.31464085]
[1740991083516,0.162626,92236.0,92235.0,0.06617782]
[1740991083768,0.162626,92236.0,92235.0,0.01454085]
[1740991084490,0.0018974,92237.0,92235.0,0.01454085]
[1740991084777,0.162626,92236.0,92235.0,0.01454085]
[1740991085014,0.1645234,92236.0,92235.0,0.01454085]
[1740991085446,0.0018974,92236.0,92235.0,0.01454085]
[1740991085700,0.162635,92231.0,92223.0,0.1490917]
[1740991085963,0.162635,92231.0,92214.0,0.07836]
[1740991086192,0.16453278,92231.0,92214.0,0.07836]
[1740991086419,0.16453278,92231.0,92212.0,0.07836]
[1740991086656,0.16453278,92231.0,92230.0,0.00030151]
[1740991088653,0.46453278,92231.0,92230.0,0.00030151]
[1740991088857,0.462635,92231.0,92230.0,0.00030151]
[1740991089803,0.162656,92219.0,92214.0,0.01454085]
[1740991090012,4.007e-05,92219.0,92214.0,0.01454085]
[1740991090243,4.007e-05,92219.0,92217.0,0.01454085]
[1740991090454,4.007e-05,92219.0,92218.0,0.03229507]
[1740991091516,4.007e-05,92219.0,92218.0,0.19495307]
[1740991092678,4.007e-05,92219.0,92218.0,0.20559731]
[1740991092993,4.007e-05,92219.0,92218.0,0.19495307]
[1740991093150,4.007e-05,92219.0,92218.0,0.20576552]
[1740991093759,4.007e-05,92219.0,92218.0,0.17719885]
[1740991093967,4.007e-05,92219.0,92218.0,0.25559885]
[1740991094165,4.007e-05,92219.0,92218.0,0.09294085]
[1740991094383,4.007e-05,92219.0,92215.0,0.0784]
[1740991094799,4.007e-05,92219.0,92217.0,0.162659]
[1740991095065,4.007e-05,92219.0,92216.0,0.01454085]
[1740991095269,0.162659,92217.0,92216.0,0.01454085]
[1740991095879,0.15666691,92217.0,92216.0,0.01454085]
[1740991097649,0.21877671,92218.0,92214.0,0.1490917]
[1740991097865,0.162663,92215.0,92214.0,0.1490917]
[1740991099656,0.162665,92214.0,92213.0,0.0003404]
[1740991099872,0.16456301,92214.0,92213.0,0.0003404]
[1740991103310,0.24726301,92214.0,92213.0,0.0003404]
[1740991104513,0.16456301,92214.0,92213.0,0.0003404]
[1740991109676,0.162688,92201.0,92194.0,0.162699]
[1740991109843,0.162688,92201.0,92195.0,0.06071357]
[1740991110075,0.162685,92203.0,92196.0,0.162696]
[1740991110254,0.162684,92203.0,92196.0,0.162696]
[1740991110668,0.216889,92213.0,92197.0,0.162693]
[1740991110925,0.162684,92204.0,92198.0,0.22842036]
[1740991112296,0.0003408,92217.0,92201.0,0.01454085]
[1740991112538,0.0003408,92217.0,92203.0,0.01454085]
[1740991112774,0.16489766,92217.0,92212.0,0.01454085]
[1740991113000,0.00223866,92217.0,92212.0,0.17720885]
[1740991113231,0.00223866,92217.0,92214.0,0.01454085]
[1740991113468,0.00223866,92217.0,92216.0,0.17720185]
[1740991113469,0.0003408,92217.0,92216.0,0.17720185]
[1740991113699,0.0003408,92217.0,92216.0,0.30880185]
[1740991114165,0.0003408,92217.0,92216.0,1.00169355]
[1740991117200,0.0003408,92217.0,92216.0,1.30169355]
[1740991117467,0.0003408,92217.0,92216.0,1.41060999]
[1740991118801,0.0003408,92217.0,92216.0,0.83903255]
[1740991119153,0.0003408,92217.0,92216.0,1.0655127]
[1740991119397,0.0003408,92217.0,92216.0,0.6928917]
[1740991119861,0.0003408,92217.0,92216.0,0.70743255]
[1740991120328,0.0003408,92217.0,92216.0,0.87009355]
[1740991120530,0.0003408,92217.0,92216.0,0.97900999]
[1740991122017,0.0003408,92217.0,92216.0,1.27900999]
[1740991122228,0.0003408,92217.0,92216.0,1.32760999]
[1740991122873,0.0003408,92217.0,92216.0,0.8555527]
[1740991123058,0.0003408,92217.0,92216.0,0.87009355]
[1740991123308,0.0003408,92217.0,92216.0,0.70743255]
[1740991123511,0.1629998,92217.0,92216.0,0.70743255]
[1740991123695,0.0003408,92217.0,92216.0,0.70743255]
[1740991123848,0.0003408,92217.0,92216.0,0.97036181]
[1740991124051,0.0003408,92217.0,92216.0,0.80770081]
[1740991125055,0.0003408,92217.0,92216.0,0.97036181]
[1740991125256,0.0003408,92217.0,92216.0,1.27036181]
[1740991125466,0.0003408,92217.0,92216.0,1.35146181]
[1740991125691,0.0003408,92217.0,92216.0,1.39986181]
[1740991127231,8e-07,92217.0,92216.0,1.44986181]
[1740991129016,8e-07,92217.0,92216.0,1.39986181]
[1740991129446,8e-07,92217.0,92216.0,0.49038096]
[1740991129851,8e-07,92217.0,92216.0,0.79038096]
[1740991130328,8e-07,92217.0,92216.0,0.2274517]
[1740991130458,8e-07,92217.0,92216.0,0.3901127]
[1740991130870,8e-07,92217.0,92216.0,0.40465355]
[1740991131274,8e-07,92217.0,92216.0,0.32629355]
[1740991131473,8e-07,92217.0,92216.0,0.1490917]
[1740991131672,8e-07,92217.0,92216.0,0.16363255]
[1740991132275,0.16267,92211.0,92208.0,0.1490917]
[1740991132473,8e-07,92217.0,92208.0,0.1490917]
[1740991132474,0.16456982,92210.0,92208.0,0.1490917]
[1740991132679,0.00189782,92210.0,92208.0,0.1490917]
[1740991133106,0.162669,92212.0,92208.0,0.1490917]
[1740991133264,0.162673,92209.0,92208.0,0.1490917]
[1740991133463,0.162671,92211.0,92208.0,0.16400087]
[1740991133869,8e-07,92217.0,92208.0,0.16400087]
[1740991134071,0.00189874,92217.0,92209.0,0.162672]
[1740991134321,8e-07,92217.0,92209.0,0.01454085]
[1740991134528,0.162671,92211.0,92209.0,0.01454085]
[1740991134731,0.16456889,92211.0,92209.0,0.04866322]
[1740991134932,8e-07,92217.0,92211.0,0.01454085]
[1740991135138,8e-07,92217.0,92210.0,0.01454085]
[1740991135564,8e-07,92217.0,92213.0,0.162666]
[1740991135976,8e-07,92217.0,92211.0,0.216893]
[1740991136193,8e-07,92217.0,92213.0,0.162666]
[1740991136390,0.162666,92213.0,92212.0,0.06464581]
[1740991136602,0.16267,92211.0,92210.0,0.01454085]
[1740991136815,8e-07,92217.0,92199.0,0.07836]
[1740991136816,0.00189788,92213.0,92199.0,0.07836]
[1740991137023,0.162669,92212.0,92205.0,0.162679]
[1740991137235,0.216895,92211.0,92200.0,0.007836]
[1740991137435,0.00189805,92210.0,92201.0,0.01454085]
[1740991137643,0.162686,92202.0,92201.0,0.01454085]
[1740991137864,0.162689,92200.0,92199.0,0.07836]
[1740991138118,0.216912,92204.0,92192.0,0.1490917]
[1740991138119,0.162702,92193.0,92192.0,0.1490917]
[1740991138607,0.162703,92192.0,92191.0,0.0001704]
[1740991138835,0.16460148,92192.0,92191.0,0.0001704]
[1740991141192,0.162697,92196.0,92191.0,0.01471125]
[1740991141373,0.1627,92194.0,92193.0,0.01454085]
[1740991141624,0.1627,92194.0,92191.0,0.0001704]
[1740991141625,0.00189822,92195.0,92191.0,0.0001704]
[1740991141923,0.162703,92192.0,92191.0,0.0001704]
[1740991146759,0.591703,92192.0,92191.0,0.0001704]
[1740991147251,0.62246845,92192.0,92191.0,0.0001704]
[1740991147722,0.67246845,92192.0,92191.0,0.0001704]
[1740991148155,0.62246845,92192.0,92191.0,0.0001704]
[1740991148661,0.67246845,92192.0,92191.0,0.0001704]
[1740991149726,0.62246845,92192.0,92191.0,0.0001704]
[1740991149935,0.591703,92192.0,92191.0,0.0001704]
[1740991150144,0.129,92192.0,92166.0,0.01454085]
[1740991150352,0.16274,92172.0,92168.0,0.01454085]
[1740991150554,0.00189862,92191.0,92168.0,0.14739384]
[1740991150555,0.216982,92174.0,92168.0,0.14739384]
[1740991150775,0.162741,92171.0,92168.0,0.14739384]
[1740991150985,0.162744,92169.0,92168.0,0.14739384]
[1740991151207,0.00189865,92181.0,92174.0,0.162733]
[1740991151414,0.00189853,92191.0,92176.0,0.01454085]
[1740991151624,0.081,92199.0,92178.0,0.01454085]
[1740991151625,0.162721,92182.0,92178.0,0.01454085]
[1740991151847,0.216924,92198.0,92178.0,0.01454085]
[1740991152070,0.162708,92190.0,92183.0,0.162719]
[1740991152230,0.01089671,92201.0,92185.0,0.01454085]
[1740991152461,0.0962769,92205.0,92190.0,0.0832]
[1740991152665,0.162703,92192.0,92191.0,0.14739384]
[1740991152840,0.162703,92192.0,92191.0,0.15397956]
[1740991153266,0.162703,92192.0,92191.0,0.13285299]
[1740991153600,0.162703,92192.0,92191.0,0.14739384]
[1740991154359,0.216911,92204.0,92191.0,0.13285299]
[1740991154560,0.00189824,92203.0,92192.0,0.01454085]
[1740991154790,0.1627,92194.0,92193.0,0.02928023]
[1740991154993,0.1627,92194.0,92193.0,0.16213322]
[1740991155777,0.1627,92194.0,92193.0,0.14739384]
[1740991158042,0.1627,92194.0,92193.0,0.14722664]
[1740991158253,0.162716,92185.0,92184.0,0.0784]
[1740991158569,0.162725,92180.0,92179.0,0.13285299]
[1740991159819,0.162725,92180.0,92179.0,0.14739384]
[1740991160180,0.216939,92192.0,92180.0,0.01454085]
[1740991160486,0.162723,92181.0,92180.0,0.01454085]
[1740991160907,0.216905,92207.0,92180.0,0.17726385]
[1740991160908,0.3,92206.0,92180.0,0.17726385]
[1740991161017,0.00189829,92205.0,92180.0,0.01454085]
[1740991161231,0.00189829,92205.0,92182.0,0.01454085]
[1740991161679,0.21691,92204.0,92182.0,0.01454085]
[1740991162025,0.162719,92183.0,92182.0,0.01454085]
[1740991162505,8e-07,92217.0,92182.0,0.01454085]
[1740991162758,0.03270946,92209.0,92184.0,0.01454085]
[1740991162943,0.03081105,92208.0,92184.0,0.01454085]
[1740991163145,0.00189827,92207.0,92184.0,0.01454085]
[1740991163281,0.162712,92187.0,92184.0,0.01454085]
[1740991163486,0.0003408,92194.0,92186.0,0.01454085]
[1740991163666,0.162708,92190.0,92188.0,0.01454085]
[1740991164057,0.162709,92189.0,92188.0,0.01454085]
[1740991164697,0.0003408,92194.0,92185.0,0.01454085]
[1740991164893,0.162712,92187.0,92186.0,0.007]
[1740991166213,0.162714,92186.0,92185.0,0.01454085]
[1740991166405,0.16461239,92186.0,92185.0,0.02929727]
[1740991166896,0.162713,92187.0,92185.0,0.02929727]
[1740991167120,0.16271,92189.0,92186.0,0.007]
[1740991167359,0.162708,92190.0,92188.0,0.01454085]
[1740991167556,0.162709,92189.0,92188.0,0.01454085]
[1740991167776,0.216936,92193.0,92185.0,0.01454085]
[1740991167933,0.162713,92187.0,92185.0,0.02154085]
[1740991168353,0.162713,92187.0,92185.0,0.07496597]
[1740991168862,0.16271,92189.0,92185.0,0.07496597]
[1740991169072,0.162711,92188.0,92185.0,0.07496597]
[1740991169257,0.216936,92193.0,92185.0,0.06796597]
[1740991169411,0.162712,92188.0,92185.0,0.20081896]
[1740991169623,0.162712,92188.0,92187.0,0.01454085]
[1740991169990,0.162713,92187.0,92186.0,0.01454085]
[1740991170234,0.162711,92188.0,92186.0,0.01454085]
[1740991170391,0.16271,92188.0,92186.0,0.01454085]
[1740991170593,0.16055415,92188.0,92186.0,0.01454085]
[1740991170788,0.16055415,92188.0,92187.0,0.04626927]
[1740991171576,0.16055415,92188.0,92187.0,0.01454085]
[1740991172858,0.03096476,92188.0,92185.0,0.13285299]
[1740991173068,0.162714,92186.0,92185.0,0.13285299]
[1740991173280,0.0003408,92194.0,92185.0,0.13285299]
[1740991173482,0.162708,92190.0,92186.0,0.01454085]
[1740991173695,0.03097026,92189.0,92188.0,0.01454085]
[1740991173952,0.162709,92190.0,92188.0,0.01454085]
[1740991174318,0.0309698,92189.0,92188.0,0.01454085]
[1740991174552,0.1936788,92189.0,92188.0,0.01454085]
[1740991174756,0.2172748,92194.0,92188.0,0.007]
[1740991174960,0.03286708,92193.0,92190.0,0.01454085]
[1740991175245,0.03096882,92192.0,92190.0,0.01454085]
[1740991175486,0.16460026,92193.0,92190.0,0.01454085]
[1740991175729,0.00189826,92193.0,92192.0,0.01454085]
[1740991175963,0.03096676,92193.0,92192.0,0.01454085]
[1740991176167,0.16493905,92194.0,92192.0,0.01454085]
[1740991177099,0.162702,92193.0,92192.0,0.01454085]
[1740991177331,0.152702,92193.0,92192.0,0.05743977]
[1740991177601,0.152702,92193.0,92192.0,0.04289892]
[1740991177843,0.162707,92190.0,92189.0,0.01543938]
[1740991178103,0.00189837,92190.0,92189.0,0.01543938]
[1740991178320,0.0003408,92194.0,92189.0,0.02998023]
[1740991178527,0.03096778,92193.0,92190.0,0.01454085]
[1740991178743,0.0003408,92194.0,92190.0,0.17724685]
[1740991178956,0.0003408,92194.0,92189.0,0.01543938]
[1740991178957,0.0003408,92194.0,92193.0,0.17724285]
[1740991180437,0.0003408,92194.0,92193.0,0.18424285]
[1740991183770,0.0003408,92194.0,92193.0,0.31709584]
[1740991187964,0.0003408,92194.0,92193.0,1.24069584]
[1740991188384,0.0003408,92194.0,92193.0,1.29069584]
[1740991188603,0.0003408,92194.0,92193.0,1.39961228]
[1740991188850,0.0003408,92194.0,92193.0,1.39261228]
[1740991189033,0.0003408,92194.0,92193.0,1.39961228]
[1740991189649,0.0003408,92194.0,92193.0,1.39261228]
[1740991190000,0.0003408,92194.0,92193.0,1.39961228]
[1740991190444,8e-07,92194.0,92193.0,1.44761228]
[1740991191660,8e-07,92194.0,92193.0,1.44061228]
[1740991192077,8e-07,92194.0,92193.0,1.44761228]
[1740991193557,8e-07,92194.0,92193.0,1.44061228]
[1740991194940,8e-07,92194.0,92193.0,1.44761228]
[1740991195408,8e-07,92194.0,92193.0,1.44061228]
[1740991195821,8e-07,92194.0,92193.0,1.44761228]
[1740991196424,8e-07,92194.0,92193.0,1.39761228]
[1740991196643,8e-07,92194.0,92193.0,1.47597228]
[1740991197242,8e-07,92194.0,92193.0,1.39761228]
[1740991197581,8e-07,92194.0,92193.0,1.47597228]
[1740991198214,8e-07,92194.0,92193.0,1.39617228]
[1740991198423,8e-07,92194.0,92193.0,1.34817228]
[1740991199277,8e-07,92194.0,92193.0,1.34134258]
[1740991199700,8e-07,92194.0,92193.0,1.34834258]
[1740991201168,8e-07,92194.0,92193.0,1.52134258]
[1740991201812,8e-07,92194.0,92193.0,1.51434258]
[1740991202017,8e-07,92217.0,92216.0,0.47720185]
[1740991202237,8e-07,92217.0,92216.0,1.28815502]
[1740991202948,8e-07,92217.0,92216.0,1.33605502]
[1740991203411,8e-07,92217.0,92216.0,1.29921958]
[1740991204058,8e-07,92217.0,92216.0,0.8110736]
[1740991204263,8e-07,92217.0,92216.0,0.9737346]
[1740991204715,0.1626598,92217.0,92216.0,0.2672736]
[1740991204931,0.1626598,92217.0,92216.0,0.13297342]
[1740991204932,0.0756008,92217.0,92216.0,0.13297342]
[1740991205151,0.2382598,92217.0,92216.0,0.13297342]
[1740991205365,0.2382598,92217.0,92216.0,0.00712043]
[1740991205803,0.2382598,92217.0,92216.0,0.00012043]
[1740991206249,0.2382598,92217.0,92216.0,0.00712043]
[1740991206702,0.2382598,92217.0,92216.0,0.00012043]
[1740991206910,0.0756008,92217.0,92216.0,0.00012043]
[1740991207123,0.0756008,92217.0,92216.0,0.03808827]
[1740991207351,0.0756008,92217.0,92216.0,0.00012043]
[1740991207352,0.1626598,92217.0,92216.0,0.00012043]
[1740991207798,0.16455758,92217.0,92216.0,0.00012043]
[1740991208014,8e-07,92217.0,92216.0,0.00012043]
[1740991208239,8e-07,92217.0,92216.0,0.30263442]
[1740991208439,8e-07,92217.0,92216.0,0.34743871]
[1740991208577,8e-07,92217.0,92216.0,0.34043871]
[1740991208810,8e-07,92217.0,92216.0,0.34743871]
[1740991209026,8e-07,92217.0,92216.0,0.89123871]
[1740991209420,8e-07,92217.0,92216.0,0.88423871]
[1740991209630,8e-07,92217.0,92216.0,0.89123871]
[1740991210592,8e-07,92217.0,92216.0,0.87669786]
[1740991210798,0.1626598,92217.0,92216.0,0.68377342]
[1740991211218,0.1626598,92217.0,92216.0,0.00712043]
[1740991212339,0.19351283,92217.0,92216.0,0.00712043]
[1740991212564,0.27221283,92217.0,92216.0,0.00712043]
[1740991213226,0.27221283,92217.0,92216.0,0.00012043]
[1740991213445,0.27221283,92217.0,92216.0,0.00412043]
[1740991214663,0.27221283,92217.0,92216.0,0.00012043]
[1740991215044,0.27221283,92217.0,92216.0,0.00412043]
[1740991215222,0.27171283,92217.0,92216.0,0.00412043]
[1740991215448,0.03085303,92217.0,92216.0,0.00012043]
[1740991215702,0.0831,92225.0,92216.0,0.02582117]
[1740991215906,0.0831,92225.0,92216.0,0.00412043]
[1740991215907,0.03086411,92224.0,92216.0,0.00412043]
[1740991216109,0.0003408,92231.0,92223.0,0.162649]
[1740991216324,0.0003408,92231.0,92221.0,0.216868]
[1740991216556,0.0003408,92231.0,92230.0,0.162636]
[1740991216783,0.0003408,92231.0,92230.0,0.34797904]
[1740991217674,0.0003408,92231.0,92230.0,0.18534304]
[1740991217888,0.1629758,92231.0,92230.0,0.18534304]
[1740991218288,0.0003408,92231.0,92230.0,0.14739384]
[1740991218500,0.0003408,92231.0,92230.0,0.31002984]
[1740991219107,0.0003408,92231.0,92230.0,0.15239384]
[1740991219485,0.1629758,92231.0,92230.0,0.15239384]
[1740991219689,0.1629758,92231.0,92230.0,0.12539384]
[1740991219921,0.1629758,92231.0,92230.0,0.17588402]
[1740991220291,0.0003408,92231.0,92230.0,0.17588402]
[1740991220522,0.0003408,92231.0,92230.0,0.12539384]
[1740991222725,0.1629758,92231.0,92230.0,0.12539384]
[1740991222942,0.16290527,92231.0,92230.0,0.12539384]
[1740991223164,0.00027027,92231.0,92230.0,0.12539384]
[1740991223372,0.00027027,92231.0,92230.0,0.28802984]
[1740991223575,0.00027027,92231.0,92230.0,0.36020382]
[1740991229152,0.00027027,92231.0,92230.0,0.35520382]
[1740991229372,0.00027027,92231.0,92230.0,0.12039384]
[1740991230042,0.16290527,92231.0,92230.0,0.12039384]
[1740991230486,0.17398511,92231.0,92230.0,0.12539384]
[1740991230767,0.17398511,92231.0,92230.0,0.005]
[1740991231904,0.00027027,92231.0,92230.0,0.005]
[1740991232138,0.16290527,92231.0,92230.0,0.0434494]
[1740991232613,0.16290527,92231.0,92230.0,0.005]
[1740991234530,0.24100527,92231.0,92230.0,0.005]
[1740991234893,0.27182154,92231.0,92230.0,0.005]
[1740991235313,0.32152154,92231.0,92230.0,0.005]
[1740991235891,0.62152154,92231.0,92230.0,0.0051702]
[1740991236515,0.57182154,92231.0,92230.0,0.0051702]
[1740991236937,0.57182154,92231.0,92230.0,0.0001702]
[1740991237191,0.57182154,92231.0,92230.0,0.0021702]
[1740991237600,0.57182154,92231.0,92230.0,0.0001702]
[1740991238329,0.57182154,92231.0,92230.0,0.0051702]
[1740991238535,0.49372154,92231.0,92230.0,0.0051702]
[1740991238799,0.49372154,92231.0,92230.0,0.0001702]
[1740991240114,0.49372154,92231.0,92230.0,0.0041702]
[1740991241682,0.49372154,92231.0,92230.0,0.0001702]
[1740991241903,0.49372154,92231.0,92230.0,0.0051702]
[1740991242132,0.03108654,92231.0,92230.0,0.0051702]
[1740991242369,0.00027027,92231.0,92230.0,0.0051702]
[1740991242610,0.00027027,92231.0,92230.0,0.19000912]
[1740991242848,0.16290527,92231.0,92230.0,0.02737312]
[1740991243068,0.00027027,92231.0,92230.0,0.02237312]
[1740991243268,0.16290527,92231.0,92230.0,0.02237312]
[1740991243512,0.00027027,92231.0,92230.0,0.02237312]
[1740991243736,0.16290527,92231.0,92230.0,0.02237312]
[1740991244196,0.00027027,92231.0,92230.0,0.02837312]
[1740991244411,0.00027027,92231.0,92230.0,0.0061702]
[1740991244640,0.16290527,92231.0,92230.0,0.0001702]
[1740991245085,0.16290527,92231.0,92230.0,0.0071702]
[1740991246482,0.00027027,92231.0,92230.0,0.0071702]
[1740991246725,0.00189745,92243.0,92230.0,0.88906489]
[1740991246955,0.01114225,92245.0,92244.0,0.240212]
[1740991247187,0.01114225,92245.0,92244.0,0.25475285]
[1740991247417,0.09834578,92257.0,92256.0,0.162591]
[1740991247648,0.09834578,92257.0,92256.0,1.29788569]
[1740991247649,7.8e-07,92257.0,92256.0,1.29788569]
[1740991248366,0.00040172,92257.0,92256.0,1.29788569]
[1740991250207,0.00040172,92257.0,92256.0,1.30488569]
[1740991250681,0.00040094,92257.0,92256.0,1.30488569]
[1740991250929,0.00040094,92257.0,92256.0,1.32493194]
[1740991251421,9.4e-07,92257.0,92256.0,1.37493194]
[1740991251660,0.0003408,92287.0,92270.0,0.05]
[1740991251892,0.0003408,92287.0,92271.0,0.56010485]
[1740991252125,0.0003408,92287.0,92271.0,0.63394414]
[1740991252830,4.1e-07,92272.0,92271.0,1.34813798]
[1740991253087,4.1e-07,92272.0,92271.0,1.44483798]
[1740991253340,4.1e-07,92272.0,92271.0,1.47856768]
[1740991253830,4.1e-07,92272.0,92271.0,1.44483798]
[1740991254054,4.1e-07,92272.0,92271.0,1.48556768]
[1740991254520,4.1e-07,92272.0,92271.0,1.47856768]
[1740991254982,4.1e-07,92272.0,92271.0,1.45183798]
[1740991255422,4.1e-07,92272.0,92271.0,1.48556768]
[1740991256151,0.0003408,92287.0,92286.0,0.512538]
[1740991256493,0.00201,92288.0,92286.0,0.512538]
[1740991256494,8e-07,92288.0,92287.0,0.57707685]
[1740991257451,0.0003408,92310.0,92307.0,0.05]
[1740991257695,0.0003408,92310.0,92309.0,0.52703785]
[1740991257696,0.00046109,92310.0,92309.0,0.52703785]
[1740991257944,0.00046109,92310.0,92309.0,0.67915714]
[1740991258692,0.00046109,92310.0,92309.0,0.69016268]
[1740991259649,0.00046109,92310.0,92309.0,0.64016268]
[1740991259908,0.00046109,92310.0,92309.0,0.56188268]
[1740991260169,0.00046109,92310.0,92309.0,0.64016268]
[1740991260366,0.00046109,92310.0,92309.0,0.24734183]
[1740991260717,0.00046109,92310.0,92309.0,0.32562183]
[1740991260938,0.00046109,92310.0,92309.0,0.33262183]
[1740991261626,0.00046109,92310.0,92309.0,0.44201013]
[1740991261853,0.00046109,92310.0,92309.0,0.20123313]
[1740991262085,0.00046109,92310.0,92309.0,0.20563384]
[1740991262349,0.00046109,92310.0,92309.0,0.36113084]
[1740991262843,0.00046109,92310.0,92309.0,0.92647169]
[1740991263071,0.00046109,92310.0,92309.0,1.02557169]
[1740991263313,0.00046109,92310.0,92309.0,1.32557169]
[1740991263531,0.00046109,92310.0,92309.0,1.26857169]
[1740991263756,4.9e-07,92311.0,92310.0,0.52703585]
[1740991265379,8.9e-07,92324.0,92323.0,0.212473]
[1740991265628,8.9e-07,92324.0,92323.0,0.57701385]
[1740991266292,8.9e-07,92324.0,92323.0,0.52701385]
[1740991266529,8.9e-07,92324.0,92323.0,0.53401385]
[1740991267164,8.9e-07,92324.0,92323.0,0.52701385]
[1740991267378,8.9e-07,92324.0,92323.0,0.58401385]
[1740991267596,8.9e-07,92324.0,92323.0,0.53401385]
[1740991268057,8.9e-07,92324.0,92323.0,0.61225385]
[1740991268292,8.9e-07,92324.0,92323.0,0.56225385]
[1740991268426,8.9e-07,92324.0,92323.0,0.61225385]
[1740991270340,8.9e-07,92324.0,92323.0,0.247713]
[1740991270503,8.9e-07,92324.0,92323.0,0.91190684]
[1740991270708,0.00030674,92339.0,92324.0,0.3]
[1740991270913,0.00042708,92339.0,92338.0,0.162446]
[1740991271656,0.00042708,92339.0,92325.0,0.66419384]
[1740991271870,0.00042708,92339.0,92325.0,0.12039384]
[1740991271871,0.0774,92338.0,92325.0,0.12039384]
[1740991272078,0.0774,92338.0,92332.0,0.162456]
[1740991272281,0.0774,92338.0,92329.0,0.216614]
[1740991272496,0.162448,92337.0,92329.0,0.216614]
[1740991272705,0.0774,92338.0,92328.0,0.216619]
[1740991272927,0.0774,92338.0,92326.0,0.01986338]
[1740991273170,0.00189538,92337.0,92327.0,0.03568942]
[1740991273570,0.00189538,92337.0,92327.0,0.19815442]
[1740991274007,0.00189538,92337.0,92327.0,0.03568942]
[1740991274214,0.00189538,92337.0,92325.0,0.12739384]
[1740991274215,0.00189538,92337.0,92325.0,0.007]
[1740991274648,0.162467,92326.0,92325.0,0.007]
[1740991274853,0.08339575,92326.0,92309.0,0.07824]
[1740991275061,0.0815,92326.0,92310.0,0.007824]
[1740991275326,0.0815,92326.0,92325.0,0.162469]
[1740991275509,0.082,92335.0,92325.0,0.12039384]
[1740991275776,0.082,92335.0,92329.0,0.162462]
[1740991275983,0.082,92335.0,92326.0,0.01203938]
[1740991275984,0.082,92335.0,92331.0,0.161457]
[1740991276169,0.082,92335.0,92329.0,0.216615]
[1740991276310,0.082,92335.0,92334.0,0.162453]
[1740991276767,0.083,92335.0,92334.0,0.162453]
[1740991276970,0.083,92335.0,92334.0,0.2220202]